fUSD/lending_fUSD_20251129
["ID","MTS","AMOUNT","RATE_DAILY","PERIOD"]
[395118059,1764455438447,-200.0,0.00014903,2]
[395118060,1764455438460,-500.0,0.00014903,2]
[395118061,1764455438473,-500.0,0.00014903,2]
[395118062,1764455438486,-714.0,0.00014906,2]
[395118064,1764455438499,-1090.20757761,0.00014906,5]
[395118065,1764455438511,-1040.24545121,0.00014906,5]
[395118066,1764455438524,-234.97664872,0.00014906,2]
[395118067,1764455438538,-500.0,0.00014906,2]
[395118068,1764455438550,-301.97769094,0.00014906,2]
[395118069,1764455438563,-157.85662247,0.00014906,2]
[395118070,1764455438575,-500.0,0.00014906,2]
[395118071,1764455438588,-500.0,0.00014906,2]
[395118072,1764455438601,-600.0,0.00014907,2]
[395118073,1764455438613,-19967.4996,0.00014907,2]
[395118074,1764455438625,-3020.8074,0.00014907,2]
[395118075,1764455438639,-1000.0,0.00014907,2]
[395118076,1764455438651,-203.46596864,0.00014927,2]
[395118077,1764455438668,-3689.27949218,0.00015,2]
[395118078,1764455438682,-1056.47494956,0.00015,2]
[395118079,1764455438696,-449.794749,0.0001504,2]
[395118080,1764455438711,-1289.49,0.00015094,2]
[395118081,1764455438728,-286.48255414,0.00015116,2]
[395118082,1764455438742,-1349.84,0.00015125,2]
[395118083,1764455438757,-714.0,0.0001518,2]
[395118084,1764455438774,-531.97,0.00015181,2]
[395118085,1764455438790,-250.0,0.00015184,2]
[395118086,1764455438804,-500.0,0.00015208,2]
[395118087,1764455438818,-1000.0,0.00015211,2]
[395118088,1764455438832,-243.36745172,0.00015212,2]
[395118089,1764455438845,-968.22,0.00015216,2]
[395118090,1764455438858,-377.0,0.00015221,2]
[395118091,1764455438871,-57302.63426734,0.00015223,2]
[395118092,1764455438884,-1060.44281,0.00015223,2]
[395118093,1764455438896,-2000.0,0.00015228,2]
[395118094,1764455438909,-210.0,0.00015234,2]
[395118095,1764455438922,-270.0,0.00015252,2]
[395118096,1764455438935,-449.794749,0.00015272,2]
[395118097,1764455438948,-150.0,0.00015279,2]
[395118098,1764455438960,-261.0,0.00015282,2]
[395118099,1764455438973,-150.0,0.00015288,2]
[395118100,1764455438985,-150.0,0.00015288,2]
[395118101,1764455438999,-150.0,0.00015288,2]
[395118102,1764455439011,-150.0,0.00015288,2]
[395118103,1764455439025,-150.0,0.00015288,2]
[395118104,1764455439040,-150.00000001,0.00015288,2]
[395118105,1764455439053,-150.0,0.00015288,2]
[395118106,1764455439067,-150.0,0.00015288,2]
[395118107,1764455439080,-11476.6,0.00015311,2]
[395118108,1764455439094,-5854.32,0.00015333,2]
[395118109,1764455439107,-500.0,0.00015342,2]
[395118110,1764455439120,-205.0,0.00015371,2]
[395118111,1764455439134,-209.55001731,0.00015397,2]
[395118112,1764455439147,-685.01,0.0001545,2]
[395118113,1764455439161,-714.0,0.00015454,2]
[395118114,1764455439173,-2751.0,0.00015462,2]
[395118115,1764455439185,-150.0,0.00015477,2]
[395118116,1764455439197,-1060.44281,0.0001549,2]
[395118117,1764455439209,-449.794749,0.00015505,2]
[395118118,1764455439220,-924.5,0.00015544,2]
[395118119,1764455439233,-714.0,0.00015728,2]
[395118120,1764455439244,-449.794749,0.00015737,2]
[395118121,1764455439256,-200.0,0.00015771,2]
[395118122,1764455439268,-203.28,0.00015852,2]
[395118123,1764455439280,-309.85057384,0.000159,2]
[395118124,1764455439292,-255.0,0.00015932,2]
[395118125,1764455439304,-182.96,0.00015947,2]
[395118126,1764455439316,-151.0,0.0001597,2]
[395118127,1764455439328,-449.794749,0.0001597,2]
[395118128,1764455439340,-500.0,0.00015973,2]
[395118129,1764455439351,-500.0,0.00015973,2]
[395118130,1764455439363,-500.0,0.00015973,2]
[395118131,1764455439374,-500.0,0.00015973,2]
[395118132,1764455439387,-159.99691032,0.00015973,2]
[395118133,1764455439399,-501.65327585,0.00015973,2]
[395118134,1764455439411,-500.0,0.00015973,2]
[395118135,1764455439423,-500.0,0.00015973,2]
[395118136,1764455439435,-500.0,0.00015973,2]
[395118137,1764455439447,-193.03771092,0.00015973,2]
[395118138,1764455439458,-500.0,0.00015973,2]
[395118139,1764455439469,-500.0,0.00015973,2]
[395118140,1764455439482,-500.0,0.00015973,2]
[395118141,1764455439494,-1012.97,0.00015985,2]
[395118142,1764455439505,-1060.44281,0.0001599,2]
[395118143,1764455439517,-79856.39425607,0.00016,2]
[395118144,1764455439529,-205543.50970635,0.00016,4]
[395118145,1764455439541,-714.0,0.00016002,2]
[395118146,1764455439552,-3526.0,0.0001611,2]
[395118147,1764455439564,-250.0,0.00016149,2]
[395118148,1764455439575,-5000.00046471,0.000162,5]
[395118149,1764455439586,-449.794749,0.00016202,2]
[395118150,1764455439598,-420.0,0.00016208,2]
[395118151,1764455439608,-420.0,0.00016208,2]
[395118152,1764455439620,-714.01,0.00016276,2]
[395118154,1764455439631,-1680.0,0.00016285,2]
[395118155,1764455439642,-200.0,0.0001634,2]
[395118156,1764455439653,-449.794749,0.00016435,2]
[395118157,1764455439665,-436.9,0.00016438,2]
[395118158,1764455439676,-500.0,0.00016438,2]
[395118159,1764455439687,-416.08725444,0.00016438,2]
[395118161,1764455439699,-500.0,0.00016438,2]
[395118162,1764455439711,-173.30593444,0.00016438,2]
[395118163,1764455439723,-10532.16,0.00016438,2]
[395118165,1764455439735,-452.21585205,0.00016438,2]
[395118166,1764455439748,-1060.44281,0.0001649,2]
[395118167,1764455439762,-184.79730938,0.00016521,2]
[395118168,1764455439773,-1000.0,0.00016521,2]
[395118169,1764455439786,-1000.0,0.00016521,2]
[395118171,1764455439797,-509.84757523,0.00016521,2]
[395118172,1764455439809,-1000.0,0.00016521,2]
[395118173,1764455439822,-1000.0,0.00016521,2]
[395118174,1764455439836,-1000.0,0.00016521,2]
[395118176,1764455439848,-427.45964135,0.00016536,2]
[395118177,1764455439860,-168.0,0.00016553,2]
[395118178,1764455439872,-3526.0,0.00016559,2]
[395118179,1764455439885,-168.0,0.0001656,2]
[395118181,1764455439897,-2597.0126531,0.00016589,2]
[395118183,1764455439909,-13030.8343288,0.00016589,2]
[395118184,1764455439920,-55694.561652,0.00016589,2]
[395118185,1764455439931,-168.0,0.00016625,2]
[395118186,1764455439943,-900.0,0.00016666,2]
[395118187,1764455439955,-449.794749,0.00016667,2]
[395118189,1764455439966,-168.0,0.00016676,2]
[395118190,1764455439977,-168.0,0.00016717,2]
[395118191,1764455439988,-168.0,0.00016824,2]
[395118192,1764455439999,-168.0,0.00016826,2]
[395118193,1764455440010,-168.0,0.00016831,2]
[395118194,1764455440021,-182.96,0.00016833,2]
[395118196,1764455440033,-222.0,0.00016845,2]
[395118197,1764455440044,-2000.0,0.00016864,2]
[395118198,1764455440055,-500.0,0.00016864,2]
[395118199,1764455440067,-200.0,0.00016864,2]
[395118200,1764455440078,-680.7173643,0.000169,2]
[395118201,1764455440089,-197.02240292,0.000169,2]
[395118202,1764455440101,-525.4282961,0.000169,2]
[395118204,1764455440112,-449.794749,0.000169,2]
[395118205,1764455440124,-500.0,0.000169,2]
[395118206,1764455440135,-500.0,0.000169,2]
[395118207,1764455440147,-500.0,0.000169,2]
[395118208,1764455440159,-500.0,0.000169,2]
[395118209,1764455440171,-500.0,0.000169,2]
[395118210,1764455440183,-500.0,0.000169,2]
[395118211,1764455440195,-500.0,0.000169,2]
[395118212,1764455440206,-500.0,0.000169,2]
[395118213,1764455440218,-500.0,0.000169,2]
[395118214,1764455440229,-500.0,0.000169,2]
[395118215,1764455440241,-500.0,0.000169,2]
[395118216,1764455440253,-500.0,0.000169,2]
[395118217,1764455440264,-500.0,0.000169,2]
[395118218,1764455440276,-500.0,0.000169,2]
[395118219,1764455440287,-500.0,0.000169,2]
[395118220,1764455440299,-500.0,0.000169,2]
[395118221,1764455440310,-192.37994214,0.000169,2]
[395118222,1764455440325,-500.0,0.00016973,2]
[395118223,1764455440339,-165.98212225,0.00016973,2]
[395118224,1764455440350,-500.0,0.00016973,2]
[395118225,1764455440362,-500.0,0.00016973,2]
[395118226,1764455440373,-500.0,0.00016973,2]
[395118227,1764455440384,-503.08797881,0.00016973,2]
[395118228,1764455440396,-500.0,0.00016973,2]
[395118229,1764455440408,-500.0,0.00016973,2]
[395118230,1764455440421,-500.0,0.00016973,2]
[395118231,1764455440432,-500.0,0.00016973,2]
[395118232,1764455440443,-500.0,0.00016973,2]
[395118233,1764455440455,-500.0,0.00016973,2]
[395118234,1764455440466,-500.0,0.00016973,2]
[395118235,1764455440478,-500.0,0.00016973,2]
[395118236,1764455440489,-500.0,0.00016973,2]
[395118237,1764455440500,-500.0,0.00016973,2]
[395118240,1764455441189,-500.0,0.00016973,2]
[395118241,1764455441227,-231.63969334,0.00016973,2]
[395118242,1764455441255,-500.0,0.00016973,2]
[395118243,1764455441268,-500.0,0.00016973,2]
[395118244,1764455441277,-500.0,0.00016973,2]
[395118245,1764455441286,-500.0,0.00016973,2]
[395118246,1764455441296,-186.88026511,0.00016973,2]
[395118247,1764455441305,-500.0,0.00016973,2]
[395118248,1764455441314,-500.0,0.00016973,2]
[395118249,1764455441323,-500.0,0.00016973,2]
[395118250,1764455441332,-500.0,0.00016973,2]
[395118251,1764455441341,-215.63945955,0.00016973,2]
[395118252,1764455441351,-500.0,0.00016973,2]
[395118253,1764455441360,-500.0,0.00016973,2]
[395118254,1764455441369,-500.0,0.00016973,2]
[395118255,1764455441378,-500.0,0.00016973,2]
[395118256,1764455441387,-281.67573932,0.00016973,2]
[395118257,1764455441396,-172.25490603,0.00016973,2]
[395118258,1764455441406,-500.0,0.00016973,2]
[395118259,1764455441415,-168.0,0.00016973,2]
[395118260,1764455441424,-598.0,0.00016986,2]
[395118261,1764455441434,-500.0,0.00016986,2]
[395118262,1764455441443,-500.0,0.00016986,2]
[395118263,1764455441453,-150.0,0.00016986,2]
[395118264,1764455441462,-150.0,0.00016986,2]
[395118265,1764455441471,-1060.44281,0.0001699,2]
[395118267,1764455441480,-151.0,0.00016997,2]
[395118268,1764455441490,-151.0,0.00016997,2]
[395118269,1764455441499,-300.0,0.00016999,2]
[395118270,1764455441508,-1040.24545121,0.00016999,5]
[395118271,1764455441518,-1040.24545121,0.00016999,5]
[395118272,1764455441527,-300.0,0.00016999,2]
[395118273,1764455441536,-168.0,0.00017,2]
[395118274,1764455441546,-1055306.69524103,0.00017,2]
[395118275,1764455441555,-797718.28919819,0.00017,2]
[395118276,1764455441564,-160.0,0.00017,2]
[395118277,1764455441573,-151.0,0.00017,2]
[395118278,1764455441582,-326.73123018,0.00017,2]
[395118279,1764455441591,-3581.7009624,0.00017,2]
[395118280,1764455441600,-3302.0089332,0.00017,2]
[395118281,1764455441609,-414.7005316,0.00017,2]
[395118282,1764455441618,-62468.0957637,0.00017,2]
[395118283,1764455441627,-250.0,0.00017,2]
[395118284,1764455441636,-2000.0,0.00017,2]
[395118285,1764455441645,-266.029318,0.00017,2]
[395118286,1764455441654,-151.0,0.00017,2]
[395118287,1764455441664,-151.0,0.00017,2]
[395118288,1764455441673,-151.0,0.00017,2]
[395118289,1764455441683,-151.0,0.00017,2]
[395118290,1764455441692,-151.0,0.00017,2]
[395118291,1764455441701,-151.0,0.00017,2]
[395118292,1764455441710,-151.0,0.00017,2]
[395118293,1764455441720,-153.956112,0.00017,2]
[395118294,1764455441729,-151.0,0.00017,2]
[395118295,1764455441738,-151.0,0.00017,2]
[395118296,1764455441747,-151.0,0.00017,2]
[395118297,1764455441756,-151.0,0.00017,2]
[395118298,1764455441765,-151.0,0.00017,2]
[395118299,1764455441775,-151.0,0.00017,2]
[395118300,1764455441783,-151.0,0.00017,2]
[395118301,1764455441792,-151.0,0.00017,2]
[395118302,1764455441801,-151.0,0.00017,2]
[395118303,1764455441810,-151.0,0.00017,2]
[395118304,1764455441819,-151.0,0.00017,2]
[395118305,1764455441828,-151.0,0.00017,2]
[395118306,1764455441837,-151.0,0.00017,2]
[395118307,1764455441846,-151.0,0.00017,2]
[395118308,1764455441855,-151.0,0.00017,2]
[395118309,1764455441864,-151.0,0.00017,2]
[395118310,1764455441873,-151.0,0.00017,2]
[395118311,1764455441883,-151.0,0.00017,2]
[395118312,1764455441892,-151.0,0.00017,2]
[395118313,1764455441902,-151.0,0.00017,2]
[395118314,1764455441911,-1508726.62395314,0.00017,2]
[395118316,1764455443445,-2813.06777522,0.00017,2]
[395118319,1764455443464,-1704.0,0.00017,2]
[395118321,1764455443526,-843.23235086,0.00014803,2]
[395118322,1764455443535,-2814.53680914,0.00017,2]
[395118323,1764455443547,-1717.6318278,0.00017,2]
[395118324,1764455443558,-7441.55697685,0.00017,2]
[395118327,1764455443686,-2570.75,0.00017,2]
[395118328,1764455443701,-321.12781215,0.00017,2]
[395118330,1764455446064,-843.23235081,0.00016219,2]
[395118331,1764455446074,-827.42920959,0.00017,2]
[395118332,1764455446085,-23218.92082097,0.00017,2]
[395118333,1764455446183,-589.84531789,0.00017,2]
[395118334,1764455446194,-900.862616,0.00017,2]
[395118335,1764455446209,-6003.8619263,0.00017,2]
[395118336,1764455446264,-467.37581513,0.00017,2]
[395118548,1764455733773,-168.22944718,0.00014707,2]
[395118551,1764455735391,-210.0,0.00014707,2]
[395118556,1764455737986,-175.25315841,0.00014707,2]
[395118559,1764455764937,-78.94165757,0.00014707,2]
[395118560,1764455764959,-90.63970843,0.00014707,2]
[395118561,1764455775465,-483.74802053,0.00014707,2]
[395118562,1764455777924,-195.0,0.00014707,2]
[395118563,1764455783349,-200.17707136,0.00014707,2]
[395118566,1764455786332,-250.0,0.00014707,2]
[395118568,1764455790167,-172.85401695,0.00014707,2]
[395118569,1764455792337,-562.69764691,0.00014707,2]
[395118570,1764455796408,-464.44833614,0.00014707,2]
[395118572,1764455801197,-374.26998707,0.00014707,2]
[395118573,1764455804717,-300.0,0.00014707,2]
[395118574,1764455808624,-227.46427242,0.00014707,2]
[395118581,1764455814012,-199.15671879,0.00014707,2]
[395118601,1764455962450,182.96,0.00014516,2]
[395118695,1764456314681,2030.6403069,0.00014206,2]
[395118696,1764456314712,1041.9796931,0.00014206,2]
[395118709,1764456393317,200.0,0.00014097,2]
[395118710,1764456478951,200.0,0.00014131,2]
[395118749,1764456610760,245.41,0.00014005,2]
[395118750,1764456618020,7837.13233412,0.00014606,2]
[395118751,1764456631391,475.48797278,0.00013943,2]
[395118752,1764456631416,209.52202722,0.00013943,2]
[395118756,1764456632239,-600.0,0.0001465,2]
[395118758,1764456632355,-9132.0413,0.0001465,2]
[395118760,1764456632364,-151.0,0.00014699,2]
[395118762,1764456632374,-250.0,0.00014701,2]
[395118764,1764456632385,-151.0,0.00014703,2]
[395118766,1764456632403,-1200.0,0.00014704,2]
[395118768,1764456632415,-994.17620107,0.00014704,2]
[395118784,1764456632726,-205.82379893,0.00014704,2]
[395118785,1764456632736,-300.0,0.00014704,2]
[395118786,1764456632746,-300.0,0.00014705,2]
[395118787,1764456632755,-300.0,0.00014705,2]
[395118788,1764456632764,-195.0,0.00014705,2]
[395118789,1764456632774,-500.0,0.00014705,2]
[395118790,1764456632783,-234.97664872,0.00014705,2]
[395118791,1764456632793,-301.97769094,0.00014705,2]
[395118792,1764456632802,-500.0,0.00014705,2]
[395118793,1764456632811,-500.0,0.00014705,2]
[395118794,1764456632822,-150.0,0.00014706,2]
[395118795,1764456632831,-1000.0,0.00014706,2]
[395118796,1764456632841,-303.16450957,0.00014706,2]
[395118800,1764456639296,-157.85662247,0.00014705,2]
[395118801,1764456639306,-170.74226421,0.00014705,2]
[395118802,1764456639315,-647.38975747,0.00014705,2]
[395118803,1764456639324,-500.0,0.00014705,2]
[395118804,1764456639337,-500.0,0.00014705,2]
[395118805,1764456639347,-500.0,0.00014705,2]
[395118806,1764456639357,-500.0,0.00014705,2]
[395118807,1764456639366,-500.0,0.00014705,2]
[395118808,1764456639375,-500.0,0.00014705,2]
[395118809,1764456639385,-500.0,0.00014705,2]
[395118810,1764456639394,-500.0,0.00014705,2]
[395118811,1764456639403,-500.0,0.00014705,2]
[395118812,1764456639413,-500.0,0.00014705,2]
[395118813,1764456639423,-500.0,0.00014705,2]
[395118814,1764456639432,-500.0,0.00014705,2]
[395118815,1764456639441,-500.0,0.00014705,2]
[395118816,1764456639450,-500.0,0.00014705,2]
[395118817,1764456639460,-500.0,0.00014705,2]
[395118818,1764456639469,-500.0,0.00014705,2]
[395118819,1764456639478,-500.0,0.00014705,2]
[395118820,1764456639487,-500.0,0.00014705,2]
[395118821,1764456639497,-500.0,0.00014705,2]
[395118822,1764456639507,-500.0,0.00014705,2]
[395118823,1764456639518,-500.0,0.00014705,2]
[395118824,1764456639527,-500.0,0.00014705,2]
[395118825,1764456639537,-500.0,0.00014705,2]
[395118826,1764456639546,-500.0,0.00014705,2]
[395118827,1764456639556,-500.0,0.00014705,2]
[395118828,1764456639566,-500.0,0.00014705,2]
[395118829,1764456639575,-500.0,0.00014705,2]
[395118830,1764456639586,-500.0,0.00014705,2]
[395118831,1764456639595,-500.0,0.00014705,2]
[395118832,1764456639605,-500.0,0.00014705,2]
[395118833,1764456639614,-500.0,0.00014705,2]
[395118834,1764456639624,-500.0,0.00014705,2]
[395118835,1764456639633,-500.0,0.00014705,2]
[395118836,1764456639643,-500.0,0.00014705,2]
[395118837,1764456639653,-500.0,0.00014705,2]
[395118838,1764456639663,-500.0,0.00014705,2]
[395118839,1764456639673,-500.0,0.00014705,2]
[395118840,1764456639682,-500.0,0.00014705,2]
[395118841,1764456639692,-500.0,0.00014705,2]
[395118842,1764456639701,-500.0,0.00014705,2]
[395118843,1764456639710,-500.0,0.00014705,2]
[395118844,1764456639720,-500.0,0.00014705,2]
[395118845,1764456639730,-500.0,0.00014705,2]
[395118846,1764456639739,-500.0,0.00014705,2]
[395118847,1764456639748,-500.0,0.00014705,2]
[395118848,1764456639758,-638458.51649043,0.00014706,2]
[395118849,1764456639767,-210.46983869,0.00014707,2]
[395118850,1764456639776,-19967.4996,0.00014707,2]
[395118851,1764456639785,-3020.8074,0.00014707,2]
[395118852,1764456639794,-1000.0,0.00014707,2]
[395118853,1764456639803,-1544.5344,0.00014707,2]
[395118854,1764456639813,-998.25,0.00014749,2]
[395118855,1764456639823,-13050.60776688,0.00014751,2]
[395118856,1764456639832,-1700.7756,0.00014767,2]
[395118857,1764456639841,-200.0,0.00014799,2]
[395118858,1764456639851,-188.15640171,0.00014799,2]
[395118859,1764456639861,-354.24049117,0.00014799,2]
[395118860,1764456639870,-200.0,0.00014799,2]
[395118861,1764456639881,-597.09424157,0.00014799,2]
[395118862,1764456639892,-200.0,0.00014799,2]
[395118863,1764456639901,-151.0,0.00014799,2]
[395118864,1764456639912,-1040.24545121,0.00014806,5]
[395118865,1764456639921,-1065.22651441,0.00014806,5]
[395118866,1764456639930,-450.0,0.00014807,2]
[395118867,1764456639940,-600.0,0.00014807,2]
[395118868,1764456639949,-7837.13233405,0.00014861,2]
[395118869,1764456639959,-225.21969723,0.000149,2]
[395118870,1764456639968,-13050.60776686,0.0001499,2]
[395118871,1764456639977,-998.25,0.00015023,2]
[395118872,1764456639987,-271.0,0.00015049,2]
[395118873,1764456639996,-3313.0,0.00015068,2]
[395118874,1764456640005,-389.0,0.00015079,2]
[395118875,1764456640014,-600.0,0.00015081,2]
[395118876,1764456640024,-96855.13789634,0.00015109,2]
[395118877,1764456640033,-7837.13233405,0.00015116,2]
[395118878,1764456640042,-500.0,0.00015116,2]
[395118879,1764456640051,-332.62709138,0.00015116,2]
[395118880,1764456640061,-500.0,0.00015116,2]
[395118881,1764456640070,-510.74534266,0.00015116,2]
[395118882,1764456640079,-500.0,0.00015116,2]
[395118883,1764456640088,-591.31867425,0.00015116,2]
[395118884,1764456640098,-500.0,0.00015116,2]
[395118885,1764456640107,-630.9506587,0.00015116,2]
[395118886,1764456640117,-500.0,0.00015116,2]
[395118887,1764456640126,-500.0,0.00015116,2]
[395118888,1764456640136,-500.0,0.00015116,2]
[395118889,1764456640146,-500.0,0.00015116,2]
[395118890,1764456640158,-525.40792157,0.00015116,2]
[395118891,1764456640168,-500.0,0.00015116,2]
[395118892,1764456640178,-500.0,0.00015116,2]
[395118893,1764456640187,-500.0,0.00015116,2]
[395118894,1764456640198,-402.97090635,0.00015116,2]
[395118895,1764456640207,-237.0,0.00015116,2]
[395118896,1764456640217,-398.0,0.00015146,2]
[395118897,1764456640226,-166.66,0.00015181,2]
[395118898,1764456640236,-13050.60776686,0.00015229,2]
[395118899,1764456640247,-151.0,0.00015247,2]
[395118900,1764456640258,-150.0,0.00015288,2]
[395118901,1764456640268,-150.0,0.00015288,2]
[395118902,1764456640277,-150.0,0.00015288,2]
[395118903,1764456640288,-150.0,0.00015288,2]
[395118904,1764456640298,-150.0,0.00015288,2]
[395118905,1764456640312,-150.0,0.00015288,2]
[395118906,1764456640322,-150.0,0.00015288,2]
[395118907,1764456640332,-150.0,0.00015288,2]
[395118908,1764456640345,-150.0,0.00015288,2]
[395118909,1764456640355,-150.0,0.00015288,2]
[395118910,1764456640364,-150.0,0.00015288,2]
[395118911,1764456640375,-150.0,0.00015288,2]
[395118912,1764456640384,-998.25,0.00015297,2]
[395118913,1764456640393,-182.96,0.00015322,2]
[395118914,1764456640402,-200.0,0.00015347,2]
[395118915,1764456640412,-202.58152099,0.00015347,2]
[395118916,1764456640421,-531.97,0.00015355,2]
[395118917,1764456640431,-7837.13233405,0.00015371,2]
[395118918,1764456640440,-264.26,0.00015407,2]
[395118919,1764456640449,-150.0,0.00015429,2]
[395118920,1764456640458,-150.0,0.00015458,2]
[395118921,1764456640467,-13050.60776686,0.00015467,2]
[395118922,1764456640476,-150.0,0.00015476,2]
[395118923,1764456640485,-150.0,0.000155,2]
[395118924,1764456640494,-166.66,0.00015501,2]
[395118925,1764456640504,-150.0,0.00015518,2]
[395118926,1764456640513,-150.0,0.00015518,2]
[395118927,1764456640522,-664.0,0.00015518,2]
[395118928,1764456640531,-500.0,0.00015518,2]
[395118929,1764456640540,-200.0,0.00015518,2]
[395118930,1764456640550,-200.0,0.00015518,2]
[395118931,1764456640558,-500.0,0.00015518,2]
[395118932,1764456640568,-150.0,0.00015518,2]
[395118933,1764456640577,-271.89568788,0.00015518,2]
[395118934,1764456640586,-150.0,0.00015518,2]
[395118935,1764456640596,-500.0,0.00015518,2]
[395118936,1764456640605,-150.0,0.0001553,2]
[395118937,1764456640616,-150.0,0.00015571,2]
[395118938,1764456640625,-150.0,0.00015571,2]
[395118939,1764456640635,-998.25,0.00015571,2]
[395118940,1764456640644,-7837.13233405,0.00015626,2]
[395118941,1764456640654,-150.0,0.00015627,2]
[395118942,1764456640663,-150.0,0.00015627,2]
[395118943,1764456640673,-664.0,0.00015655,2]
[395118944,1764456640684,-500.0,0.00015655,2]
[395118945,1764456640694,-518.09228248,0.00015655,2]
[395118946,1764456640703,-150.0,0.00015655,2]
[395118947,1764456640713,-150.0,0.00015655,2]
[395118949,1764456640729,-500.0,0.00015655,2]
[395118950,1764456640739,-150.0,0.00015665,2]
[395118951,1764456640748,-243.36745172,0.00015688,2]
[395118952,1764456640757,-151.0,0.00015703,2]
[395118953,1764456640767,-13050.60776686,0.00015706,2]
[395118954,1764456640777,-150.0,0.00015712,2]
[395118955,1764456640786,-150.0,0.00015712,2]
[395118956,1764456640795,-2019.71981585,0.00015741,2]
[395118957,1764456640804,-150.0,0.00015773,2]
[395118958,1764456640815,-664.0,0.00015792,2]
[395118959,1764456640824,-550.44152871,0.00015792,2]
[395118960,1764456640833,-150.0,0.00015792,2]
[395118961,1764456640843,-500.0,0.00015792,2]
[395118962,1764456640852,-151.0,0.00015795,2]
[395118963,1764456640862,-150.0,0.00015797,2]
[395118964,1764456640872,-166.66,0.00015821,2]
[395118965,1764456640881,-255.0,0.00015824,2]
[395118966,1764456640891,-998.25,0.00015845,2]
[395118967,1764456640900,-177.39,0.00015852,2]
[395118968,1764456640909,-150.0,0.00015854,2]
[395118969,1764456640918,-150.0,0.00015854,2]
[395118970,1764456640927,-150.0,0.00015854,2]
[395118971,1764456640935,-150.0,0.00015854,2]
[395118972,1764456640944,-200.0,0.00015895,2]
[395118973,1764456640953,-1121.2189628,0.000159,2]
[395118974,1764456640961,-1121.2189628,0.000159,2]
[395118975,1764456640970,-1121.2189628,0.000159,2]
[395118976,1764456640979,-2663.93619654,0.000159,2]
[395118977,1764456640988,-150.0,0.00015925,2]
[395118978,1764456640997,-664.0,0.00015929,2]
[395118979,1764456641006,-250.0,0.00015929,2]
[395118980,1764456641016,-500.0,0.00015929,2]
[395118981,1764456641026,-13050.60776686,0.00015945,2]
[395118982,1764456641035,-150.0,0.00015967,2]
[395118983,1764456641045,-150.0,0.00015967,2]
[395118984,1764456641054,-504.164248,0.00015973,2]
[395118985,1764456641066,-545.6682471,0.00015973,2]
[395118986,1764456641075,-500.0,0.00015973,2]
[395118987,1764456641084,-159.99691032,0.00015973,2]
[395118988,1764456641096,-500.0,0.00015973,2]
[395118989,1764456641105,-500.0,0.00015973,2]
[395118990,1764456641115,-500.0,0.00015973,2]
[395118991,1764456641124,-500.0,0.00015973,2]
[395118992,1764456641133,-176.16235425,0.00015973,2]
[395118993,1764456641142,-502.60400669,0.00015973,2]
[395118994,1764456641151,-500.0,0.00015973,2]
[395118995,1764456641160,-500.0,0.00015973,2]
[395118996,1764456641170,-500.0,0.00015973,2]
[395118997,1764456641178,-500.0,0.00015973,2]
[395118998,1764456641188,-500.0,0.00015973,2]